lending/lending_fUSD_20240816
["ID","MTS","AMOUNT","RATE_DAILY","PERIOD"]
[335028098,1723770640239,-2680.317,0.000108,2]
[335028099,1723770640249,-157.61292635,0.00010899,2]
[335028100,1723770640259,-1000.0,0.000109,2]
[335028101,1723770640268,-726.912,0.000109,2]
[335028102,1723770640278,-170.57147776,0.000109,2]
[335028103,1723770640288,-168.8587113,0.000109,2]
[335028104,1723770640298,-204.3760443,0.000109,2]
[335028105,1723770640308,-326.81458476,0.000109,2]
[335028106,1723770640318,-1765.076,0.000109,2]
[335028107,1723770640329,-1205.0,0.000109,2]
[335028108,1723770640338,-5843.0,0.000109,2]
[335028109,1723770640348,-1673.0,0.000109,2]
[335028110,1723770640358,-1076.0,0.000109,2]
[335028111,1723770640368,-250.0,0.00010959,2]
[335028112,1723770640378,-844.7,0.00010959,2]
[335028113,1723770640389,-67.99073949,0.00010979,2]
[335028114,1723770640407,-87.00926051,0.00010979,2]
[335028115,1723770640417,-235.84091956,0.00010993,2]
[335028116,1723770640432,-179.1696801,0.00010993,2]
[335028117,1723770640442,-324.3090427,0.00010998,2]
[335028118,1723770640464,-6127.153259,0.00010998,2]
[335028119,1723770640473,-10921.89322791,0.00010998,2]
[335028121,1723770640484,-540.18000005,0.00010998,2]
[335028124,1723770640496,-896.87104009,0.00010998,2]
[335028126,1723770640507,-2595.615659,0.00010998,2]
[335028237,1723770642809,-311.308985,0.00010998,2]
[335028254,1723770643693,-297.59077079,0.00010998,2]
[335028255,1723770643707,-2694.80145435,0.00010998,2]
[335028258,1723770643723,-5308.86152761,0.00010998,2]
[335028260,1723770643733,-1934.0621872,0.00010998,2]
[335028263,1723770643742,-337.69179294,0.00010999,2]
[335028266,1723770643752,-19418.48798352,0.00011,2]
[335028271,1723770645227,-883.32723249,0.00011,2]
[335028272,1723770645238,-630.18302999,0.00011,2]
[335028273,1723770645249,-452.15233686,0.00011,2]
[335028274,1723770645260,-187200.15592413,0.00011,2]
[335028275,1723770645269,-199989.39661573,0.00011,2]
[335028276,1723770645279,-18770.31446622,0.00011,2]
[335028284,1723770645857,-1981.35353,0.00011,2]
[335028290,1723770645936,-1675.2,0.00011,2]
[335028291,1723770645946,-321.56691331,0.00011,2]
[335028292,1723770645958,-14868.48538005,0.00011,2]
[335028293,1723770645969,-3006.8028,0.00011,2]
[335028294,1723770646158,-3337.89376783,0.00011,2]
[335028315,1723771132266,461.8,8.219e-05,2]
[335028316,1723771249323,-162.76853278,0.0001,2]
[335028317,1723771249350,-331.84,0.00010121,2]
[335028318,1723771249374,-438.28,0.00010208,2]
[335028319,1723771249401,-3237.11146722,0.00010253,2]
[335028321,1723771607736,438.71,8.326e-05,2]
[335028322,1723771619557,150.0,9.888e-05,2]
[335028348,1723771800037,-300.0,9.999e-05,2]
[335028350,1723771800065,-4812.95499458,0.0001,2]
[335028352,1723771800117,-3484.03243532,0.0001,2]
[335028368,1723771833214,-300.0,9.999e-05,2]
[335028369,1723771833224,-257.07764247,9.999e-05,2]
[335028370,1723771833329,-42.92235753,9.999e-05,2]
[335028372,1723771833339,-1050.2725701,0.0001,2]
[335028373,1723771833349,-121.88097831,0.0001,2]
[335028374,1723771833362,-89.10564157,0.0001,2]
[335028375,1723771833373,-1000.0,0.00010014,2]
[335028376,1723771833382,-155.0,0.00010026,2]
[335028377,1723771833392,-7973.11,0.00010071,2]
[335028378,1723771833402,-168.16,0.00010082,2]
[335028379,1723771833412,-162.68778996,0.00010253,2]
[335028380,1723771833422,-170.54579841,0.00010253,2]
[335028381,1723771833431,-171.9,0.00010566,2]
[335028382,1723771833441,-438.71,0.0001059,2]
[335028383,1723771833451,-5619.57,0.00010683,2]
[335028384,1723771833461,-499.99,0.00010683,2]
[335028385,1723771833471,-150.0,0.00010699,2]
[335028386,1723771833481,-1723.9386,0.000107,2]
[335028387,1723771833490,-55812.6966,0.000107,2]
[335028388,1723771833500,-1000.0,0.000107,2]
[335028389,1723771833509,-3197.21,0.000107,2]
[335028390,1723771833519,-1008.03,0.000107,2]
[335028391,1723771833528,-150.0,0.000107,2]
[335028392,1723771833537,-150.0,0.000107,2]
[335028393,1723771833546,-815.31589721,0.000108,2]
[335028394,1723771833556,-151.40610674,0.00010848,2]
[335028395,1723771833565,-150.0,0.00010874,2]
[335028396,1723771833574,-2261.0675,0.000109,2]
[335028397,1723771833584,-1000.0,0.000109,2]
[335028398,1723771833593,-2235.78,0.000109,2]
[335028399,1723771833603,-169.74522175,0.000109,2]
[335028400,1723771833612,-194.01712883,0.000109,2]
[335028401,1723771833622,-1946.0,0.000109,2]
[335028402,1723771833631,-172.276,0.000109,2]
[335028403,1723771833640,-938.772,0.000109,2]
[335028404,1723771833650,-688.636,0.000109,2]
[335028405,1723771833660,-1602.59,0.000109,2]
[335028406,1723771833669,-250.0,0.00010959,2]
[335028407,1723771833679,-87523.80089384,0.0001099,2]
[335028408,1723771833688,-26887.6713692,0.00010998,2]
[335028409,1723771833698,-2206.5667174,0.00010998,2]
[335028410,1723771833707,-420.0,0.00010999,2]
[335028411,1723771833717,-420.0,0.00010999,2]
[335028412,1723771833727,-349.52524173,0.00010999,2]
[335028413,1723771833736,-574.0,0.00011,2]
[335028414,1723771833746,-227695.06898944,0.00011,2]
[335028415,1723771833758,-929.99995,0.00011,2]
[335028416,1723771833769,-300.0,0.00011,2]
[335028417,1723771833780,-2841.23992188,0.00011,2]
[335028418,1723771833792,-9327.27490929,0.00011,2]
[335028419,1723771833803,-2722.12504729,0.00011,2]
[335028420,1723771833844,-1205.0,0.000109,2]
[335028421,1723771833854,-474.06194262,0.00011,2]
[335028422,1723771833888,-1203.63841064,0.00011,2]
[335028423,1723771833900,-2514.72665498,0.00011,2]
[335028424,1723771833911,-22916.49869489,0.00011,2]
[335028425,1723771833923,-334.17,0.00011,2]
[335028426,1723771833935,-23550.12811365,0.00011,2]
[335028427,1723771833944,-272024.37389858,0.00011,2]
[335028428,1723771833956,-1306.0,0.00011,2]
[335028429,1723771833968,-3586.11267,0.00011,2]
[335028431,1723771838344,-1605.98,0.000109,2]
[335028433,1723771838507,-67.02,0.000109,2]
[335028434,1723771838516,-570.0,0.00011,2]
[335028435,1723771838525,-5510.77656562,0.00011,2]
[335028436,1723771838537,-2355.10505028,0.00011,2]
[335028437,1723771838548,-2756.36521699,0.00011,2]
[335028438,1723771838558,-1495.67112458,0.00011,2]
[335028439,1723771838570,-5436.27545617,0.00011,2]
[335028440,1723771838945,-712.43225591,0.00011,2]
[335028442,1723771838957,-528.91366359,0.00011,2]
[335028467,1723771839293,-194509.20639266,0.00011,2]
[335028468,1723771839307,-2041.0,0.00011,2]
[335028471,1723771843738,-269.12736552,0.000109,2]
[335028474,1723771843760,-176.87263448,0.000109,2]
[335028476,1723771843770,-500.0,0.00010999,2]
[335028478,1723771843781,-500.0,0.00010999,2]
[335028480,1723771843791,-196.69597398,0.00010999,2]
[335028481,1723771843801,-235.34726031,0.00010999,2]
[335028482,1723771843819,-264.65273969,0.00010999,2]
[335028483,1723771843829,-198.05026051,0.00011,2]
[335028484,1723771843840,-8671.2648556,0.00011,2]
[335028485,1723771843852,-496.77599432,0.00011,2]
[335028486,1723771843863,-16148.42041883,0.00011,2]
[335028487,1723771843875,-2917.5,0.00011,2]
[335028488,1723771843886,-9375.89153638,0.00011,2]
[335028489,1723771843897,-374.07477111,0.00011,2]
[335028491,1723771843908,-1433.76304378,0.00011,2]
[335028493,1723771843919,-508.350001,0.00011,2]
[335028494,1723771845448,-1217.50675063,0.00011,2]
[335028495,1723771845459,-36139.38464979,0.00011,2]
[335028496,1723771845468,-1010.91291094,0.00011,2]
[335028497,1723771845477,-250.0,0.00011,2]
[335028498,1723771845486,-1348150.69370106,0.00011,2]
[335028499,1723771845497,-1273761.25569671,0.00011,2]
[335028500,1723771845507,-1878.03631072,0.00011,2]
[335028501,1723771845518,-1479.94136493,0.00011,2]
[335028506,1723771846445,-49.77897243,0.000109,2]
[335028508,1723771846456,-854.94750329,0.000109,2]
[335028509,1723771846600,-232.27352428,0.000109,2]
[335028510,1723771846610,-462.91896719,0.00011,2]
[335028511,1723771846621,-628.775,0.00011,2]
[335028512,1723771846631,-693.13255914,0.00011,2]
[335028513,1723771846642,-432.3199983,0.00011,2]
[335028514,1723771846789,-500.0,0.00011,2]
[335028516,1723771846800,-3979.28148486,0.00011,2]
[335028619,1723771914019,211.08161,0.00025,62]
[335028623,1723772087703,472.77,8.219e-05,2]
[335028624,1723772090256,720.519163,9.95e-05,2]
[335028626,1723772164695,155.32985889,9.95e-05,2]
[335028627,1723772174688,7465.16,9.929e-05,2]
[335028628,1723772178378,921.92,9.929e-05,2]
[335028629,1723772190573,500.0,9.92e-05,2]
[335028630,1723772261522,-181.89991337,0.0001,2]
[335028631,1723772261543,-550.0,0.0001,2]
[335028632,1723772274139,1121.39,9.948e-05,2]
[335028633,1723772288846,162.97004395,0.0001,2]
[335028634,1723772297306,170.56038761,0.0001,2]
[335028635,1723772299514,200.0,9.924e-05,2]
[335028636,1723772306076,-1078.43,0.0001003,2]
[335028637,1723772306098,-160.61881162,0.00010072,2]
[335028638,1723772306122,-168.16,0.00010081,2]
[335028639,1723772306146,-300.0,0.00010172,2]
[335028640,1723772306168,-2703.00387563,0.00010173,2]
[335028641,1723772306196,-23900.0,0.00010173,2]
[335028642,1723772407251,171.9,9.963e-05,2]
[335028643,1723772443816,211.55,9.963e-05,2]
[335028644,1723772544967,449.13,8.219e-05,2]
[335028645,1723772546077,15105.7,9.938e-05,2]
[335028646,1723772630914,250.0,9.947e-05,2]
[335028647,1723772691839,299.1,9.935e-05,2]
[335028648,1723772733785,560.69,9.918e-05,2]
[335028651,1723772758271,840.0,9.912e-05,2]
[335028652,1723772799682,-617.23,0.00010018,2]
[335028653,1723772799703,-181.89991337,0.00010173,2]
[335028654,1723772799724,-170.70052944,0.00010173,2]
[335028655,1723772799745,-155.20481626,0.00010471,2]
[335028656,1723772799766,-182.9290845,0.00010471,2]
[335028657,1723772799793,-449.13,0.00010473,2]
[335028658,1723772799815,-300.0,0.00010504,2]
[335028659,1723772799836,-1300.9168339,0.00010505,2]
[335028660,1723772799859,-3876.81207198,0.00010505,2]
[335028661,1723772799880,-1257.95663297,0.00010505,2]
[335028662,1723772799901,-155.0,0.00010505,2]
[335028663,1723772799923,-792.1170854,0.00010505,2]
[335028664,1723772813731,150.69664748,9.888e-05,2]
[335028669,1723773002457,-1500.0,0.00010026,2]
[335028670,1723773002485,-418.72225599,0.00010026,2]
[335028671,1723773002514,-807.96310011,0.00010026,2]
[335028702,1723773038729,-1141.42837333,9.999e-05,2]
[335028703,1723773038739,-675.06914667,0.00010009,2]
[335028704,1723773038751,-679.27995712,0.00010009,2]
[335028705,1723773038763,-388.84019923,0.00010009,2]
[335028706,1723773038773,-300.0,0.00010025,2]
[335028707,1723773038783,-811.15980077,0.00010026,2]
[335028708,1723773038794,-617.53442811,0.00010026,2]
[335028709,1723773038807,-87.57754167,0.00010026,2]
[335028710,1723773038817,-535.86445694,0.00010026,2]
[335028711,1723773038829,-119.21848681,0.00010026,2]
[335028712,1723773038839,-307.98570512,0.00010026,2]
[335028713,1723773038851,-379.30059028,0.00010026,2]
[335028714,1723773038861,-155.20527079,0.00010026,2]
[335028715,1723773038872,-129.46321062,0.00010026,2]
[335028716,1723773038931,-25.53678938,0.00010026,2]
[335028717,1723773038941,-273.39907496,0.00010026,2]
[335028718,1723773038952,-256.72459399,0.00010026,2]
[335028719,1723773038962,-211.10292658,0.00010026,2]
[335028720,1723773038971,-486.12274777,0.00010026,2]
[335028721,1723773038980,-432.64200537,0.00010026,2]
[335028722,1723773038989,-179.51849561,0.00010026,2]
[335028723,1723773038998,-366.51001001,0.00010097,2]
[335028724,1723773039006,-155.20601412,0.00010097,2]
[335028725,1723773039016,-166.44772973,0.00010097,2]
[335028726,1723773039025,-440.25519205,0.00010097,2]
[335028727,1723773039035,-155.18542092,0.00010097,2]
[335028728,1723773039044,-255.29819999,0.00010097,2]
[335028729,1723773039053,-347.83093604,0.00010097,2]
[335028730,1723773039062,-172.77042105,0.00010471,2]
[335028731,1723773039072,-493.78450869,0.00010471,2]
[335028732,1723773039081,-368.02160394,0.00010471,2]
[335028733,1723773039090,-85.13763361,0.00010471,2]
[335028734,1723773039102,-565.943896,0.00010471,2]
[335028735,1723773039112,-328.90977864,0.00010471,2]
[335028736,1723773039121,-358.15923085,0.00010471,2]
[335028737,1723773039131,-155.0,0.00010471,2]
[335028738,1723773039140,-150.0,0.00010504,2]
[335028739,1723773039150,-192.51396601,0.00010505,2]
[335028740,1723773039160,-155.0,0.00010505,2]
[335028741,1723773039169,-236.4331183,0.00010505,2]
[335028742,1723773039179,-150.0,0.00010548,2]
[335028743,1723773039188,-164.46445373,0.00010566,2]
[335028744,1723773039198,-499.99,0.00010799,2]
[335028745,1723773039208,-401.57037291,0.000108,2]
[335028746,1723773039217,-270.99906219,0.000108,2]
[335028747,1723773039233,-445.66093781,0.000108,2]
[335028748,1723773039243,-456.66,0.000108,2]
[335028750,1723773039252,-96.73674213,0.000108,2]
[335028760,1723773040649,-53.26325787,0.000108,2]
[335028761,1723773040659,-301.42,0.000108,2]
[335028762,1723773040671,-150.0,0.000108,2]
[335028763,1723773040684,-260.0093,0.000108,2]
[335028764,1723773040693,-205.1346,0.000108,2]
[335028765,1723773040703,-562.03114302,0.00010887,2]
[335028766,1723773040763,-303.29885698,0.00010887,2]
[335028767,1723773040775,-271.1133433,0.00010888,2]
[335028768,1723773040785,-526.9490155,0.0001089,2]
[335028769,1723773040794,-78.86181695,0.0001089,2]
[335028770,1723773040808,-225.70807073,0.0001089,2]
[335028771,1723773040818,-298.03981742,0.0001089,2]
[335028772,1723773040826,-413.34133037,0.0001089,2]
[335028773,1723773041118,-876.55738539,0.0001089,2]
[335028774,1723773041129,-1594.4435325,0.0001089,2]
[335028775,1723773041140,-1205.93096904,0.0001089,2]
[335028776,1723773041151,-286.38867823,0.0001089,2]
[335028777,1723773041170,-500.0,0.0001089,2]
[335028778,1723773041181,-23740.44580447,0.0001089,2]
[335028779,1723773041190,-3236.6523,0.0001089,2]
[335028780,1723773041199,-164.56067163,0.00010899,2]
[335028781,1723773041209,-164.56067163,0.00010899,2]
[335028782,1723773041218,-629.9908775,0.00010899,2]
[335028783,1723773041227,-164.56067163,0.00010899,2]
[335028784,1723773041236,-164.56067163,0.00010899,2]
[335028785,1723773041245,-164.56067163,0.000109,2]
[335028786,1723773041254,-14484.87801658,0.000109,2]
[335028787,1723773043057,-1076.89675817,0.00010852,2]
[335028789,1723773043068,-1836.77680019,0.000109,2]
[335028795,1723773043665,-375.04508323,0.000109,2]
[335028796,1723773043679,-565.05141377,0.000109,2]
[335028797,1723773043690,-13268.78230178,0.000109,2]
[335028798,1723773043703,-1639.37488445,0.000109,2]
[335028800,1723773043712,-578.50544377,0.000109,2]
[335028801,1723773043723,-421.49455623,0.000109,2]
[335028802,1723773043732,-70.05833252,0.000109,2]
[335028803,1723773043743,-592.93081871,0.000109,2]
[335028804,1723773043755,-1652.88274877,0.000109,2]
[335028805,1723773043764,-1831.8265,0.000109,2]
[335028806,1723773043773,-179.29075143,0.000109,2]
[335028807,1723773043785,-688.56235155,0.000109,2]
[335028808,1723773043796,-422.17999998,0.000109,2]
[335028811,1723773045297,-463.29586362,0.000109,2]
[335028812,1723773045310,-21295.46493342,0.000109,2]
[335028813,1723773045320,-521.2888,0.000109,2]
[335028814,1723773045332,-171.7717053,0.000109,2]
[335028815,1723773045341,-16804.179,0.000109,2]
[335028816,1723773045350,-164.56067163,0.000109,2]
[335028817,1723773045360,-150.0,0.000109,2]
[335028818,1723773045369,-7500.0,0.000109,2]
[335028819,1723773045379,-421.13,0.000109,2]
[335028820,1723773045388,-835.58,0.000109,2]
[335028821,1723773045398,-1005.0,0.000109,2]
[335028822,1723773045408,-421.01,0.000109,2]
[335028823,1723773045417,-2000.0,0.00010959,2]
[335028824,1723773045426,-250.0,0.00010959,2]
[335028825,1723773045436,-150.0,0.00010959,2]
[335028826,1723773045445,-601.97664659,0.00010993,2]
[335028827,1723773045455,-455.46067811,0.00010993,2]
[335028828,1723773045464,-2846.97519027,0.00010993,2]
[335028829,1723773045473,-633.48349885,0.00010997,2]
[335028830,1723773045482,-3452.3287657,0.00010998,2]
[335028831,1723773045492,-372.1469617,0.00010998,2]
[335028832,1723773045501,-20171.8173714,0.00010998,2]
[335028833,1723773045510,-1223.35396664,0.00010999,2]
[335028834,1723773045519,-158840.55129317,0.00011,2]
[335028835,1723773045529,-710826.0342206,0.00011,2]
[335028836,1723773045540,-284.13554524,0.00011,2]
[335028837,1723773045552,-6246.50973598,0.00011,2]
[335028838,1723773045565,-1919.52883686,0.00011,2]
[335028839,1723773046498,-3088.18848215,0.00010999,2]
[335028840,1723773046508,-2798.65941265,0.00011,2]
[335028841,1723773046735,-20749.74922882,0.00011,2]
[335028842,1723773046747,-313.06330969,0.00011,2]
[335028843,1723773046761,-14587.91398168,0.00011,2]
[335028844,1723773046774,-3854.16700004,0.00011,2]
[335028845,1723773100983,513.38,0.00025,60]
[335028846,1723773145672,-159.94781571,0.00011,10]
[335028847,1723773152058,446.07,8.242e-05,2]
[335028849,1723773211833,-725.15856744,0.00015,14]
[335028850,1723773223837,441.03747394,9.99e-05,2]
[335028851,1723773246991,368.20521789,9.988e-05,2]
[335028853,1723773313224,177.82,0.000178,120]
[335028854,1723773313256,156.54,0.000178,120]
[335028855,1723773313378,150.5,0.000178,120]
[335028856,1723773313853,299.04,0.0001779,120]
[335028861,1723773573724,23880.0,9.981e-05,2]
[335028862,1723773599113,437.16,8.219e-05,2]
[335028863,1723773796741,19790.57473607,9.962e-05,2]
[335028875,1723774142976,250.0,9.937e-05,2]
[335028881,1723774226131,429.33,8.219e-05,2]
[335028883,1723774231629,-550.0,0.0001,2]
[335028884,1723774231639,-672.0,0.00010016,2]
[335028885,1723774231649,-280.34,0.00010035,2]
[335028886,1723774231658,-160.72,0.00010066,2]
[335028887,1723774231668,-1308.20137093,0.00010097,2]
[335028888,1723774231677,-194.84489701,0.00010097,2]
[335028889,1723774231686,-179.84112588,0.00010097,2]
[335028890,1723774231696,-328.0,0.00010123,2]
[335028891,1723774231705,-166.72404572,0.00010471,2]
[335028892,1723774231714,-433.20217796,0.00010471,2]
[335028893,1723774231724,-348.16693794,0.00010471,2]
[335028894,1723774231733,-217.98987645,0.00010471,2]
[335028895,1723774231743,-429.33,0.00010473,2]
[335028896,1723774231753,-300.0,0.00010504,2]
[335028897,1723774231762,-236.72785346,0.00010505,2]
[335028898,1723774231772,-156.14180465,0.00010505,2]
[335028899,1723774231782,-255.64045714,0.00010505,2]
[335028900,1723774231791,-155.0,0.00010505,2]
[335028901,1723774231801,-164.68210132,0.00010505,2]
[335028902,1723774231810,-499.99,0.00010505,2]
[335028903,1723774231820,-206.26892827,0.00010566,2]
[335028904,1723774231829,-6421.2,0.00010712,2]
[335028905,1723774231839,-1039.06538782,0.0001078,2]
[335028906,1723774231848,-1169.53807106,0.0001078,2]
[335028907,1723774231857,-9816.51956247,0.000108,2]
[335028908,1723774231867,-688.31811901,0.00010888,2]
[335028909,1723774231876,-494.42120436,0.00010888,2]
[335028910,1723774231886,-1027.282,0.00010896,2]
[335028911,1723774231896,-664.405,0.00010896,2]
[335028912,1723774231906,-338.726,0.00010896,2]
[335028913,1723774231917,-881.7,0.00010897,2]
[335028914,1723774231926,-949.0814,0.00010897,2]
[335028915,1723774231935,-775.3256,0.00010898,2]
[335028916,1723774231944,-175.46649454,0.00010899,2]
[335028917,1723774231954,-175.46649454,0.00010899,2]
[335028918,1723774231963,-150.0,0.00010899,2]
[335028919,1723774231972,-8131.8447,0.000109,2]
[335028920,1723774231981,-82030.1636,0.000109,2]
[335028921,1723774231990,-101997.77075069,0.000109,2]
[335028922,1723774232214,-7062.90663695,0.000109,2]
[335028923,1723774232227,-295.44814184,0.000109,2]
[335028924,1723774232238,-6035.37977052,0.000109,2]
[335028925,1723774232247,-419.4651,0.000109,2]
[335028926,1723774232257,-7500.0,0.000109,2]
[335028927,1723774232266,-167.9088,0.000109,2]
[335028928,1723774232275,-175.46649454,0.000109,2]
[335028929,1723774232285,-1098.0,0.000109,2]
[335028930,1723774232295,-267.47,0.00010959,2]
[335028931,1723774232304,-250.0,0.00010959,2]
[335028932,1723774232313,-188.73251935,0.00010973,2]
[335028933,1723774232323,-197.55008,0.00010993,2]
[335028934,1723774232333,-250.98802915,0.00010997,2]
[335028935,1723774232342,-1363.87099989,0.00010999,3]
[335028936,1723774232351,-578.10663931,0.00010999,2]
[335028937,1723774232360,-293.23763084,0.00011,2]
[335028938,1723774232406,-12552.98142732,0.00011,2]
[335028939,1723774232417,-909.3594811,0.00011,2]
[335028940,1723774232428,-8508.47926252,0.00011,2]
[335028941,1723774232439,-2967.87,0.00011,2]
[335028942,1723774232451,-1192.8949193,0.00011,2]
[335028943,1723774232461,-349.70936002,0.00011,2]
[335028947,1723774237909,-274.24032816,0.000109,2]
[335028949,1723774237918,-613.25967184,0.00011,2]
[335028950,1723774237930,-719.45,0.00011,2]
[335028952,1723774238167,-300.001004,0.00011,2]
[335028953,1723774238179,-326.45,0.00011,2]
[335028954,1723774238190,-4359.03,0.00011,2]
[335028955,1723774238202,-1100.67125844,0.00011,2]
[335028956,1723774238214,-500.0,0.00011,2]
[335028957,1723774238224,-287.74887693,0.00011,2]
[335028958,1723774238236,-1664.7,0.00011,2]
[335028959,1723774238248,-443.13092382,0.00011,2]
[335028960,1723774238259,-784.64182838,0.00011,2]
[335028961,1723774238270,-542.99403541,0.00011,2]
[335028962,1723774238331,-127084.45970998,0.00011,2]
[335028963,1723774238342,-51923.12935302,0.00011,2]
[335028964,1723774238464,-2510.72,0.00011,2]
[335028965,1723774238475,-46442.6807189,0.00011,2]
[335028966,1723774238486,-655.6964493,0.00011,2]
[335028967,1723774238497,-666.4,0.00011,2]
[335028968,1723774238508,-717.96206054,0.00011,2]
[335029005,1723774239774,-1124.02077438,0.00011,2]
[335029006,1723774239787,-644.08472678,0.00011,2]
[335029007,1723774239800,-11384.66755912,0.00011,2]
[335029008,1723774239812,-111742.50435818,0.00011,2]
[335029009,1723774239823,-107040.2036493,0.00011,2]
[335029010,1723774240884,-2926.4020911,0.00011,2]
[335029011,1723774240897,-1729.84999999,0.00011,2]
[335029012,1723774240908,-376.955934,0.00011,2]
[335029013,1723774240921,-418.0170567,0.00011,2]
[335029014,1723774240933,-1637.54428267,0.00011,2]
[335029015,1723774240946,-4608.07243216,0.00011,2]
[335029016,1723774240957,-578.60900341,0.00011,2]
[335029017,1723774240971,-7701.58319048,0.00011,2]
[335029018,1723774240982,-6102.1638032,0.00011,2]
[335029019,1723774241076,-902.52573696,0.00011,2]
[335029021,1723774241090,-576.07708972,0.00011,2]
[335029028,1723774242754,-748.63230573,0.00011,2]
[335029043,1723774243943,-322.78240018,0.00011,2]
[335029044,1723774243955,-2978.44655774,0.00011,2]
[335029045,1723774243968,-286.93626806,0.00011,2]
[335029046,1723774243978,-1570.55517767,0.00011,2]
[335029047,1723774243990,-584.30000011,0.00011,2]
[335029049,1723774245723,-1599.08934919,0.00011,2]
[335029050,1723774245735,-873.04153788,0.00011,2]
[335029051,1723774245747,-985.07438389,0.00011,2]
[335029052,1723774245758,-455.37695136,0.00011,2]
[335029053,1723774245770,-831.48450349,0.00011,2]
[335029054,1723774245781,-715.36994382,0.00011,2]
[335029055,1723774245792,-427.18428536,0.00011,2]
[335029056,1723774245804,-537.88,0.00011,2]
[335029057,1723774245816,-768.44720034,0.00011,2]
[335029058,1723774245827,-653.44587086,0.00011,2]
[335029059,1723774245840,-1003340.38455846,0.00011,2]
[335029060,1723774245852,-3608.13094706,0.00011,2]
[335029061,1723774245863,-931.13278959,0.00011,2]
[335029062,1723774245875,-1255.06367634,0.00011,2]
[335029063,1723774245887,-9723.75219398,0.00011,2]
[335029065,1723774246399,-2353.21410219,0.00011,2]
[335029066,1723774246409,-1000.54103258,0.00011,2]
[335029067,1723774246420,-29900.94388131,0.00011,2]
[335029068,1723774246432,-553.56974129,0.00011,2]
[335029069,1723774246514,-609.53823585,0.00011,2]
[335029070,1723774246628,-412.52214123,0.00011,2]
[335029071,1723774246639,-1740.74654837,0.00011,2]
[335029072,1723774246651,-11753.76194839,0.00011,2]
[335029073,1723774246663,-3666.82998998,0.00011,2]
[335029074,1723774246674,-1578.68488602,0.00011,2]
[335029075,1723774246686,-1421.4756318,0.00011,2]
[335029076,1723774246697,-458.27649239,0.00011,2]
[335029077,1723774246708,-506.28464956,0.00011,2]
[335029078,1723774246720,-12135.87654505,0.00011,2]
[335029079,1723774246732,-5143.26,0.00011,2]
[335029080,1723774246743,-57510.14240531,0.00011,2]
[335029081,1723774246754,-8388.26784103,0.00011,2]
[335029082,1723774246765,-474.29234017,0.00011,2]
[335029083,1723774246776,-2439.94300744,0.00011,2]
[335029084,1723774246787,-4363.8790903,0.00011,2]
[335029085,1723774246799,-430.18684934,0.00011,2]
[335029086,1723774246813,-1295.87497203,0.00011,2]
[335029087,1723774246824,-21788.10231445,0.00011,2]
[335029088,1723774246835,-7533.79919372,0.00011,2]
[335029089,1723774246846,-2227.32105604,0.00011,2]
[335029090,1723774253428,504.727,0.00025,60]
[335029092,1723774687699,501.6162211,0.00024931,60]
[335029093,1723774694276,463.24,8.219e-05,2]
[335029094,1723774775802,500.0,9.962e-05,2]
[335029095,1723774815652,3109.39,9.951e-05,2]
[335029096,1723774896162,537.6,9.913e-05,2]
[335029097,1723774929054,2577.43,9.926e-05,2]
[335029098,1723775073919,562.62,9.902e-05,2]
[335029099,1723775100731,266.12,9.893e-05,2]
[335029100,1723775128203,250.0,9.89e-05,2]
[335029102,1723775162198,200.0,9.89e-05,2]
[335029103,1723775164842,543.89,9.969e-05,2]
[335029104,1723775167735,530.04,9.897e-05,2]
[335029105,1723775233106,440.07,8.219e-05,2]
[335029110,1723775268226,2521.73,9.901e-05,2]